fUST/lending_fUST_20250802
["ID","MTS","AMOUNT","RATE_DAILY","PERIOD"]
[376639544,1754065840018,-227.618551,0.00021917,2]
[376639545,1754065840028,-227.618551,0.00021917,2]
[376639546,1754065840038,-432.98627124,0.00021917,10]
[376639547,1754065840048,-460.0,0.00021917,10]
[376639548,1754065840057,-460.0,0.00021917,10]
[376639549,1754065840067,-460.0,0.00021917,10]
[376639550,1754065840076,-460.0,0.00021917,10]
[376639551,1754065840086,-996.33,0.00021917,10]
[376639552,1754065840095,-460.0,0.00021917,10]
[376639553,1754065840104,-460.0,0.00021917,10]
[376639554,1754065840114,-460.0,0.00021917,10]
[376639555,1754065840124,-684.11073674,0.00021917,10]
[376639556,1754065840136,-170.93926326,0.00021917,10]
[376639557,1754065840145,-525.29,0.00021917,10]
[376639558,1754065840154,-151.0,0.00021917,2]
[376639559,1754065840164,-462.26943869,0.00021917,10]
[376639560,1754065840173,-463.09046278,0.00021917,10]
[376639561,1754065840183,-460.0,0.00021917,10]
[376639562,1754065840192,-151.0,0.00021917,2]
[376639563,1754065840201,-460.0,0.00021917,10]
[376639564,1754065840211,-460.0,0.00021917,10]
[376639565,1754065840222,-460.0,0.00021917,10]
[376639566,1754065840231,-500.0,0.00021917,2]
[376639567,1754065840240,-151.0,0.00021917,2]
[376639568,1754065840249,-141.72926984,0.00021917,2]
[376639569,1754065840261,-9.27073016,0.00021917,2]
[376639570,1754065840271,-528.0,0.00021917,2]
[376639571,1754065840281,-460.0,0.00021917,10]
[376639572,1754065840290,-460.0,0.00021917,10]
[376639573,1754065840300,-460.0,0.00021917,10]
[376639574,1754065840309,-500.0,0.00021917,2]
[376639575,1754065840319,-180.94762465,0.00021917,10]
[376639576,1754065840331,-279.05237535,0.00021917,10]
[376639577,1754065840340,-151.0,0.00021917,2]
[376639579,1754065840350,-460.0,0.00021917,10]
[376639581,1754065840359,-151.26571026,0.00021917,2]
[376639582,1754065840369,-460.0,0.00021917,10]
[376639584,1754065840382,-151.0,0.00021917,2]
[376639586,1754065840395,-151.64426063,0.00021917,2]
[376639588,1754065840407,-326.13765376,0.00021917,10]
[376639591,1754065840424,-176.45245399,0.00021917,10]
[376639593,1754065840435,-151.0,0.00021917,2]
[376639595,1754065840446,-460.0,0.00021917,10]
[376639597,1754065840456,-151.0,0.00021917,2]
[376639599,1754065840469,-460.0,0.00021917,10]
[376639602,1754065840481,-460.0,0.00021917,10]
[376639604,1754065840493,-11049.04716705,0.00021917,10]
[376639606,1754065840508,-1595.21874144,0.00021917,10]
[376639609,1754065840519,-151.0,0.00021917,2]
[376639611,1754065840531,-151.0,0.00021917,2]
[376639613,1754065840542,-151.0,0.00021917,2]
[376639615,1754065840554,-500.0,0.00021917,10]
[376639618,1754065840567,-460.0,0.00021917,10]
[376639620,1754065840580,-151.0,0.00021917,2]
[376639623,1754065840591,-460.0,0.00021917,10]
[376639625,1754065840602,-151.0,0.00021917,2]
[376639627,1754065840614,-2167.51,0.00021917,10]
[376639629,1754065840626,-151.0,0.00021917,2]
[376639631,1754065840639,-340.45669823,0.00021917,10]
[376639633,1754065840650,-151.30813734,0.00021917,2]
[376639636,1754065840662,-500.0,0.00021917,2]
[376639638,1754065840676,-745.5,0.00021917,10]
[376639640,1754065840689,-151.0,0.00021917,2]
[376639641,1754065840700,-151.0,0.00021917,2]
[376639642,1754065840723,-460.0,0.00021917,10]
[376639643,1754065840733,-504.39,0.00021917,10]
[376639644,1754065840743,-460.0,0.00021917,10]
[376639645,1754065840754,-460.0,0.00021917,10]
[376639646,1754065840765,-460.0,0.00021917,10]
[376639647,1754065840776,-151.0,0.00021917,2]
[376639648,1754065840788,-151.0,0.00021917,2]
[376639649,1754065840800,-460.0,0.00021917,10]
[376639650,1754065840811,-2813.50421495,0.00021917,10]
[376639651,1754065840826,-4568.66525093,0.00021917,10]
[376639652,1754065840840,-1031.97053412,0.00021917,10]
[376639653,1754065840853,-1118.73,0.00021917,10]
[376639654,1754065840864,-151.0,0.00021917,2]
[376639655,1754065840876,-2027.43,0.00021917,10]
[376639656,1754065840889,-151.0,0.00021917,2]
[376639657,1754065840900,-560.54,0.00021917,10]
[376639658,1754065840909,-151.0,0.00021917,2]
[376639659,1754065840919,-151.0,0.00021917,2]
[376639660,1754065840929,-151.0,0.00021917,2]
[376639661,1754065840940,-976.29,0.00021917,10]
[376639662,1754065840952,-151.0,0.00021917,2]
[376639663,1754065840965,-151.0,0.00021917,2]
[376639664,1754065840978,-157.851088,0.00021917,2]
[376639665,1754065840990,-460.0,0.00021917,10]
[376639666,1754065841001,-392.78049217,0.00021917,10]
[376639667,1754065841011,-331.77340245,0.00021917,10]
[376639668,1754065841022,-162.18665044,0.00021917,10]
[376639669,1754065841032,-405.12368363,0.00021917,10]
[376639671,1754065841044,-460.0,0.00021917,10]
[376639672,1754065841055,-581.87,0.00021917,10]
[376639674,1754065841068,-497.65,0.00021917,10]
[376639676,1754065841079,-272.134171,0.00021917,2]
[376639678,1754065841089,-857.14,0.00021917,10]
[376639680,1754065841099,-313.67194521,0.00021917,10]
[376639682,1754065841110,-460.0,0.00021917,10]
[376639685,1754065841123,-460.0,0.00021917,10]
[376639687,1754065841134,-460.0,0.00021917,10]
[376639689,1754065841144,-1259.65,0.00021917,10]
[376639691,1754065841155,-460.0,0.00021917,10]
[376639693,1754065841165,-460.0,0.00021917,10]
[376639695,1754065841175,-1704.36,0.00021917,10]
[376639697,1754065841187,-487.82,0.00021917,10]
[376639699,1754065841198,-461.82082709,0.00021917,10]
[376639702,1754065841208,-452.66277148,0.00021917,10]
[376639704,1754065841219,-151.0,0.00021917,2]
[376639706,1754065841230,-151.0,0.00021917,2]
[376639708,1754065841241,-312.16666667,0.00021917,10]
[376639710,1754065841251,-151.0,0.00021917,2]
[376639712,1754065841262,-151.0,0.00021917,2]
[376639714,1754065841272,-151.0,0.00021917,2]
[376639716,1754065841283,-757.85,0.00021917,10]
[376639718,1754065841294,-460.0,0.00021917,10]
[376639721,1754065841305,-460.0,0.00021917,10]
[376639723,1754065841315,-151.0,0.00021917,2]
[376639725,1754065841326,-151.0,0.00021917,2]
[376639727,1754065841337,-151.0,0.00021917,2]
[376639729,1754065841347,-151.0,0.00021917,2]
[376639731,1754065841358,-151.0,0.00021917,2]
[376639733,1754065841368,-460.0,0.00021917,10]
[376639736,1754065841379,-460.0,0.00021917,10]
[376639738,1754065841390,-460.0,0.00021917,10]
[376639740,1754065841401,-1724.45,0.00021917,10]
[376639742,1754065841411,-460.0,0.00021917,10]
[376639744,1754065841422,-460.0,0.00021917,10]
[376639746,1754065841432,-460.0,0.00021917,10]
[376639748,1754065841443,-460.0,0.00021917,10]
[376639751,1754065841454,-151.0,0.00021917,2]
[376639753,1754065841465,-460.0,0.00021917,10]
[376639755,1754065841476,-1414.43,0.00021917,10]
[376639757,1754065841487,-500.0,0.00021917,2]
[376639759,1754065841498,-151.0,0.00021917,2]
[376639761,1754065841508,-151.0,0.00021917,2]
[376639763,1754065841519,-151.0,0.00021917,2]
[376639765,1754065841530,-1288.81,0.00021917,10]
[376639767,1754065841541,-460.0,0.00021917,10]
[376639770,1754065841551,-151.0,0.00021917,2]
[376639772,1754065841562,-151.0,0.00021917,2]
[376639774,1754065841573,-626.11,0.00021917,10]
[376639776,1754065841583,-460.0,0.00021917,10]
[376639778,1754065841594,-576.74,0.00021917,10]
[376639780,1754065841605,-500.0,0.00021917,2]
[376639782,1754065841615,-460.0,0.00021917,10]
[376639785,1754065841626,-460.0,0.00021917,10]
[376639787,1754065841641,-460.0,0.00021917,10]
[376639789,1754065841651,-460.0,0.00021917,10]
[376639791,1754065841661,-460.0,0.00021917,10]
[376639793,1754065841673,-3819.48,0.00021917,10]
[376639795,1754065841683,-612.03,0.00021917,10]
[376639797,1754065841693,-460.0,0.00021917,10]
[376639799,1754065841704,-460.0,0.00021917,10]
[376639801,1754065841715,-534.59,0.00021917,10]
[376639803,1754065841725,-6139.57,0.00021917,10]
[376639805,1754065841735,-460.0,0.00021917,10]
[376639807,1754065841746,-460.0,0.00021917,10]
[376639809,1754065841757,-624.06,0.00021917,10]
[376639811,1754065841768,-460.0,0.00021917,10]
[376639814,1754065841779,-460.0,0.00021917,10]
[376639816,1754065841790,-1510.01,0.00021917,10]
[376639818,1754065841801,-460.0,0.00021917,10]
[376639820,1754065841811,-1253.42,0.00021917,10]
[376639822,1754065841822,-460.0,0.00021917,10]
[376639824,1754065841833,-460.0,0.00021917,10]
[376639826,1754065841844,-460.0,0.00021917,10]
[376639828,1754065841854,-460.0,0.00021917,10]
[376639831,1754065841865,-801.44,0.00021917,10]
[376639833,1754065841875,-1318.56,0.00021917,10]
[376639835,1754065841886,-460.0,0.00021917,10]
[376639837,1754065841896,-460.0,0.00021917,10]
[376639839,1754065841907,-460.0,0.00021917,10]
[376639841,1754065841917,-460.0,0.00021917,10]
[376639843,1754065841928,-1169.9,0.00021917,10]
[376639846,1754065841939,-460.0,0.00021917,10]
[376639848,1754065841949,-492.55,0.00021917,10]
[376639850,1754065841958,-950.41,0.00021917,10]
[376639852,1754065841967,-579.64,0.00021917,10]
[376639854,1754065841978,-460.0,0.00021917,10]
[376639856,1754065841987,-1323.37,0.00021917,10]
[376639858,1754065841996,-460.0,0.00021917,10]
[376639860,1754065842006,-460.0,0.00021917,10]
[376639862,1754065842015,-460.0,0.00021917,10]
[376639863,1754065842024,-460.0,0.00021917,10]
[376639866,1754065842034,-3774.80828441,0.00021917,10]
[376639874,1754065842459,-151.0,0.00021903,2]
[376639875,1754065842468,-147.23569615,0.00021917,10]
[376639876,1754065842481,-4245.92601944,0.00021917,10]
[376639877,1754065842490,-460.0,0.00021917,10]
[376639878,1754065842499,-460.0,0.00021917,10]
[376639879,1754065842509,-634.52,0.00021917,10]
[376639880,1754065842518,-652.23,0.00021917,10]
[376639881,1754065842528,-390.01825121,0.00021917,10]
[376639882,1754065842539,-303.43,0.00021917,10]
[376639883,1754065842766,-279.05174879,0.00021917,10]
[376639884,1754065842777,-2596.02,0.00021917,10]
[376639885,1754065842788,-171.62878727,0.00021917,10]
[376639886,1754065842797,-460.0,0.00021917,10]
[376639887,1754065842808,-460.0,0.00021917,10]
[376639888,1754065842817,-460.0,0.00021917,10]
[376639889,1754065842827,-460.0,0.00021917,10]
[376639890,1754065842836,-460.0,0.00021917,10]
[376639891,1754065842845,-1006.47,0.00021917,10]
[376639892,1754065842854,-460.0,0.00021917,10]
[376639893,1754065842863,-460.0,0.00021917,10]
[376639894,1754065842872,-464.97307931,0.00021917,10]
[376639895,1754065842882,-460.0,0.00021917,10]
[376639896,1754065842891,-416.03089515,0.00021917,10]
[376639897,1754065842901,-460.0,0.00021917,10]
[376639898,1754065842911,-460.0,0.00021917,10]
[376639899,1754065842920,-460.0,0.00021917,10]
[376639900,1754065842929,-460.0,0.00021917,10]
[376639901,1754065842939,-460.0,0.00021917,10]
[376639902,1754065842947,-4917.72,0.00021917,10]
[376639903,1754065842956,-460.0,0.00021917,10]
[376639904,1754065842966,-460.0,0.00021917,10]
[376639905,1754065842977,-460.0,0.00021917,10]
[376639906,1754065842987,-460.0,0.00021917,10]
[376639907,1754065842996,-1073.36,0.00021917,10]
[376639908,1754065843007,-4307.86,0.00021917,10]
[376639909,1754065843017,-1626.47,0.00021917,10]
[376639910,1754065843027,-460.0,0.00021917,10]
[376639911,1754065843036,-1237.79,0.00021917,10]
[376639912,1754065843046,-461.77994684,0.00021917,10]
[376639913,1754065843056,-828.78,0.00021917,10]
[376639914,1754065843065,-460.0,0.00021917,10]
[376639915,1754065843074,-460.0,0.00021917,10]
[376639916,1754065843084,-460.0,0.00021917,10]
[376639917,1754065843094,-460.0,0.00021917,10]
[376639918,1754065843103,-460.0,0.00021917,10]
[376639920,1754065843113,-460.0,0.00021917,10]
[376639921,1754065843123,-588.57,0.00021917,10]
[376639923,1754065843132,-151.0,0.00021917,2]
[376639925,1754065843142,-1855.82,0.00021917,10]
[376639927,1754065843151,-151.0,0.00021917,2]
[376639929,1754065843160,-432.20930398,0.00021917,10]
[376639932,1754065843169,-134.94472965,0.00021917,10]
[376639934,1754065843184,-366.09527035,0.00021917,10]
[376639936,1754065843193,-460.0,0.00021917,10]
[376639938,1754065843202,-460.0,0.00021917,10]
[376639940,1754065843212,-606.23,0.00021917,10]
[376639942,1754065843221,-460.0,0.00021917,10]
[376639944,1754065843235,-460.0,0.00021917,10]
[376639947,1754065843245,-460.0,0.00021917,10]
[376639950,1754065843255,-1000.0,0.00021917,10]
[376639951,1754065843264,-557.82,0.00021917,10]
[376639953,1754065843274,-884.58,0.00021917,10]
[376639954,1754065843283,-2633.66,0.00021917,10]
[376639955,1754065843294,-460.0,0.00021917,10]
[376639957,1754065843303,-460.0,0.00021917,10]
[376639959,1754065843312,-460.0,0.00021917,10]
[376639960,1754065843321,-460.0,0.00021917,10]
[376639961,1754065843330,-460.0,0.00021917,10]
[376639962,1754065843340,-460.0,0.00021917,10]
[376639963,1754065843349,-1227.45,0.00021917,10]
[376639965,1754065843358,-460.0,0.00021917,10]
[376639967,1754065843367,-568.86,0.00021917,10]
[376639968,1754065843376,-460.0,0.00021917,10]
[376639969,1754065843385,-1169.79,0.00021917,10]
[376639970,1754065843394,-460.0,0.00021917,10]
[376639971,1754065843403,-460.0,0.00021917,10]
[376639973,1754065843412,-460.0,0.00021917,10]
[376639975,1754065843422,-460.0,0.00021917,10]
[376639976,1754065843431,-460.0,0.00021917,10]
[376639977,1754065843440,-460.0,0.00021917,10]
[376639978,1754065843449,-461.68189417,0.00021917,10]
[376639979,1754065843458,-460.0,0.00021917,10]
[376639980,1754065843468,-2195.32,0.00021917,10]
[376639981,1754065843481,-186.33806845,0.00021917,10]
[376639982,1754065843490,-460.0,0.00021917,10]
[376639983,1754065843499,-460.0,0.00021917,10]
[376639984,1754065843508,-460.0,0.00021917,10]
[376639985,1754065843518,-460.0,0.00021917,10]
[376639987,1754065843527,-460.0,0.00021917,10]
[376639989,1754065843536,-460.0,0.00021917,10]
[376639990,1754065843545,-583.19,0.00021917,10]
[376639991,1754065843554,-460.0,0.00021917,10]
[376639992,1754065843564,-460.0,0.00021917,10]
[376639993,1754065843573,-460.0,0.00021917,10]
[376639995,1754065843583,-461.37700377,0.00021917,10]
[376639997,1754065843592,-460.0,0.00021917,10]
[376639999,1754065843606,-460.0,0.00021917,10]
[376640001,1754065843615,-460.0,0.00021917,10]
[376640003,1754065843624,-460.0,0.00021917,10]
[376640005,1754065843641,-460.0,0.00021917,10]
[376640007,1754065843649,-539.01474863,0.00021917,10]
[376640009,1754065843658,-460.0,0.00021917,10]
[376640011,1754065843667,-460.0,0.00021917,10]
[376640013,1754065843677,-823.25993758,0.00021917,10]
[376640015,1754065843691,-101.14006242,0.00021917,10]
[376640016,1754065843700,-460.0,0.00021917,10]
[376640017,1754065843708,-460.0,0.00021917,10]
[376640018,1754065843718,-851.85,0.00021917,10]
[376640019,1754065843728,-460.0,0.00021917,10]
[376640020,1754065843737,-460.0,0.00021917,10]
[376640021,1754065843746,-460.0,0.00021917,10]
[376640022,1754065843755,-151.0,0.00021918,2]
[376640023,1754065843764,-151.0,0.00021918,2]
[376640025,1754065843773,-170.94661983,0.00021918,2]
[376640027,1754065843782,-250.0,0.00021962,2]
[376640029,1754065843790,-500.72644918,0.00021973,2]
[376640031,1754065843800,-321.16232929,0.00022,2]
[376640033,1754065843809,-217.0,0.00022,2]
[376640035,1754065843818,-154.79890646,0.00022091,2]
[376640037,1754065843827,-425.19153236,0.00022107,6]
[376640039,1754065843836,-1895.03,0.00022172,10]
[376640041,1754065843845,-500.0,0.00022172,10]
[376640043,1754065843854,-500.94423311,0.00022173,2]
[376640044,1754065843863,-369.59337706,0.00022173,2]
[376640050,1754065844166,-239.53,0.00021907,10]
[376640051,1754065844176,-90.46917035,0.00022173,2]
[376640052,1754065844248,-39.93745259,0.00022173,2]
[376640053,1754065844257,-461.14583416,0.00022173,2]
[376640054,1754065844268,-40.81454001,0.00022173,2]
[376640055,1754065844278,-262.99605377,0.00022173,2]
[376640056,1754065844289,-237.00394623,0.00022173,2]
[376640057,1754065844301,-500.0,0.00022173,2]
[376640058,1754065844311,-500.0,0.00022173,2]
[376640059,1754065844320,-216.36913112,0.00022173,2]
[376640060,1754065844328,-204.89478343,0.00022173,2]
[376640061,1754065844342,-295.10521657,0.00022173,2]
[376640062,1754065844353,-54.69867833,0.00022173,2]
[376640083,1754065846588,-506.0,0.00021917,10]
[376640084,1754065846598,-448.18395972,0.00022173,2]
[376640085,1754065846607,-280.47706655,0.00022173,2]
[376640086,1754065846616,-500.0,0.00022173,2]
[376640087,1754065846626,-500.0,0.00022173,2]
[376640088,1754065846638,-275.06325816,0.00022173,2]
[376640089,1754065846648,-420.55481277,0.00022173,2]
[376640096,1754066788495,162.130946,0.00013699,2]
[376640165,1754067032109,-150.0,0.000189,2]
[376640167,1754067032118,-160.0,0.0002,3]
[376640169,1754067032128,-1484.8883559,0.00020811,2]
[376640171,1754067032137,-181.539139,0.00020814,2]
[376640173,1754067032146,-195.4301,0.00020911,2]
[376640175,1754067032155,-29.46687475,0.00021507,2]
[376640178,1754067032176,-673.22263158,0.00021507,2]
[376640180,1754067032186,-161.01284419,0.00021817,2]
[376640182,1754067032195,-427.31762538,0.00021899,2]
[376640184,1754067032205,-205.92020693,0.000219,6]
[376640186,1754067032215,-352.0,0.00021906,2]
[376640188,1754067032224,-469.48,0.00021907,3]
[376640190,1754067032233,-234.74,0.00021907,3]
[376640192,1754067032243,-704.24,0.00021907,3]
[376640194,1754067032252,-199.61,0.00021907,10]
[376640196,1754067032262,-166.34,0.00021907,10]
[376640198,1754067032271,-1200.0,0.00021915,2]
[376640200,1754067032280,-276.0,0.00021915,2]
[376640202,1754067032289,-300.0,0.00021915,2]
[376640204,1754067032299,-478.3353844,0.00021916,2]
[376640206,1754067032308,-189.92836928,0.00021916,2]
[376640208,1754067032317,-306.05231043,0.00021916,2]
[376640210,1754067032326,-155.0,0.00021916,2]
[376640211,1754067032335,-492.7787231,0.00021917,10]
[376640214,1754067032345,-460.0,0.00021917,10]
[376640216,1754067032354,-460.0,0.00021917,10]
[376640217,1754067032363,-460.0,0.00021917,10]
[376640219,1754067032372,-151.0,0.00021917,2]
[376640221,1754067032382,-460.0,0.00021917,10]
[376640223,1754067032391,-386.47,0.00021917,10]
[376640225,1754067032400,-151.0,0.00021917,2]
[376640227,1754067032409,-460.0,0.00021917,10]
[376640229,1754067032418,-463.66715179,0.00021917,10]
[376640231,1754067032427,-508.42,0.00021917,10]
[376640233,1754067032436,-151.0,0.00021917,10]
[376640235,1754067032445,-460.0,0.00021917,10]
[376640237,1754067032455,-258.02921341,0.00021917,10]
[376640239,1754067032464,-197.621928,0.00021917,2]
[376640241,1754067032474,-460.0,0.00021917,10]
[376640243,1754067032483,-460.0,0.00021917,10]
[376640245,1754067032492,-151.0,0.00021917,2]
[376640247,1754067032502,-460.0,0.00021917,10]
[376640248,1754067032511,-460.0,0.00021917,10]
[376640250,1754067032521,-460.0,0.00021917,10]
[376640252,1754067032530,-460.0,0.00021917,10]
[376640254,1754067032539,-460.0,0.00021917,10]
[376640256,1754067032548,-460.0,0.00021917,10]
[376640258,1754067032558,-361.08042165,0.00021917,10]
[376640260,1754067032567,-460.0,0.00021917,10]
[376640262,1754067032577,-463.49377099,0.00021917,10]
[376640264,1754067032589,-847.72,0.00021917,10]
[376640266,1754067032598,-460.0,0.00021917,10]
[376640268,1754067032607,-460.0,0.00021917,10]
[376640270,1754067032616,-460.0,0.00021917,10]
[376640272,1754067032626,-460.0,0.00021917,10]
[376640274,1754067032635,-460.0,0.00021917,10]
[376640276,1754067032644,-460.0,0.00021917,10]
[376640278,1754067032653,-460.0,0.00021917,10]
[376640280,1754067032662,-151.0,0.00021917,10]
[376640282,1754067032671,-460.0,0.00021917,10]
[376640283,1754067032682,-460.0,0.00021917,10]
[376640284,1754067032691,-151.0,0.00021917,10]
[376640286,1754067032700,-152.67255641,0.00021917,10]
[376640288,1754067032710,-151.0,0.00021917,10]
[376640289,1754067032719,-151.0,0.00021917,10]
[376640291,1754067032729,-460.0,0.00021917,10]
[376640292,1754067032739,-460.0,0.00021917,10]
[376640294,1754067032748,-475.67,0.00021917,10]
[376640296,1754067032757,-4048.66,0.00021917,10]
[376640298,1754067032766,-879.66,0.00021917,10]
[376640300,1754067032775,-151.0,0.00021917,2]
[376640302,1754067032785,-219.145181,0.00021917,2]
[376640304,1754067032794,-219.145181,0.00021917,2]
[376640306,1754067032804,-219.145181,0.00021917,2]
[376640308,1754067032814,-219.145181,0.00021917,2]
[376640309,1754067032823,-460.0,0.00021917,10]
[376640311,1754067032832,-462.0234851,0.00021917,10]
[376640313,1754067032841,-462.93405833,0.00021917,10]
[376640315,1754067032851,-460.0,0.00021917,10]
[376640317,1754067032860,-460.0,0.00021917,10]
[376640319,1754067032870,-460.0,0.00021917,10]
[376640321,1754067032880,-460.31408092,0.00021917,10]
[376640323,1754067032889,-503.4,0.00021917,10]
[376640325,1754067032899,-460.0,0.00021917,10]
[376640327,1754067032909,-460.0,0.00021917,10]
[376640329,1754067032918,-460.0,0.00021917,10]
[376640331,1754067032928,-460.0,0.00021917,10]
[376640333,1754067032938,-460.0,0.00021917,10]
[376640335,1754067032947,-460.0,0.00021917,10]
[376640336,1754067032956,-480.16,0.00021917,10]
[376640338,1754067032970,-580.22694274,0.00021917,10]
[376640340,1754067032982,-461.16635307,0.00021917,10]
[376640341,1754067032992,-441.621556,0.00021917,2]
[376640342,1754067033001,-441.621556,0.00021917,2]
[376640343,1754067033011,-441.621556,0.00021917,2]
[376640344,1754067033021,-460.0,0.00021917,10]
[376640345,1754067033031,-797.95,0.00021917,10]
[376640346,1754067033042,-174.46970914,0.00021917,10]
[376640347,1754067033054,-441.621556,0.00021917,2]
[376640349,1754067033063,-441.621556,0.00021917,2]
[376640350,1754067033073,-441.621556,0.00021917,2]
[376640352,1754067033082,-466.42093496,0.00021917,10]
[376640354,1754067033092,-471.93722276,0.00021917,10]
[376640356,1754067033102,-460.0,0.00021917,10]
[376640358,1754067033111,-460.0,0.00021917,10]
[376640360,1754067033121,-460.0,0.00021917,10]
[376640362,1754067033130,-460.0,0.00021917,10]
[376640364,1754067033140,-460.0,0.00021917,10]
[376640366,1754067033149,-151.0,0.00021917,2]
[376640368,1754067033159,-151.0,0.00021917,2]
[376640370,1754067033169,-151.55422434,0.00021917,10]
[376640372,1754067033179,-460.0,0.00021917,10]
[376640374,1754067033189,-460.0,0.00021917,10]
[376640376,1754067033199,-460.0,0.00021917,10]
[376640378,1754067033208,-460.0,0.00021917,10]
[376640380,1754067033218,-461.03477258,0.00021917,10]
[376640382,1754067033228,-151.0,0.00021917,10]
[376640384,1754067033237,-151.0,0.00021917,10]
[376640386,1754067033247,-460.0,0.00021917,10]
[376640388,1754067033255,-607.86,0.00021917,10]
[376640390,1754067033266,-496.08,0.00021917,10]
[376640392,1754067033275,-151.0,0.00021917,2]
[376640394,1754067033285,-151.0,0.00021917,2]
[376640396,1754067033295,-460.0,0.00021917,10]
[376640398,1754067033304,-460.0,0.00021917,10]
[376640400,1754067033313,-460.0,0.00021917,10]
[376640402,1754067033323,-460.0,0.00021917,10]
[376640404,1754067033333,-460.0,0.00021917,10]
[376640405,1754067033342,-573.66499687,0.00021917,10]
[376640407,1754067033351,-571.71,0.00021917,10]
[376640408,1754067033361,-460.0,0.00021917,10]
[376640409,1754067033371,-460.0,0.00021917,10]
[376640410,1754067033381,-460.0,0.00021917,10]
[376640412,1754067033392,-460.0,0.00021917,10]
[376640415,1754067033402,-177.787584,0.00021917,2]
[376640416,1754067033411,-460.0,0.00021917,10]
[376640418,1754067033421,-151.0,0.00021917,2]
[376640420,1754067033430,-151.0,0.00021917,2]
[376640422,1754067033440,-252.799686,0.00021917,2]
[376640423,1754067033449,-500.0,0.00021917,10]
[376640425,1754067033459,-500.0,0.00021917,10]
[376640427,1754067033469,-500.0,0.00021917,10]
[376640430,1754067033478,-500.0,0.00021917,10]
[376640431,1754067033488,-500.0,0.00021917,10]
[376640433,1754067033497,-500.0,0.00021917,10]
[376640435,1754067033507,-500.0,0.00021917,10]
[376640437,1754067033517,-307.50845714,0.00021917,10]
[376640439,1754067033527,-460.0,0.00021917,10]
[376640441,1754067033536,-460.0,0.00021917,10]
[376640443,1754067033545,-1374.66,0.00021917,10]
[376640445,1754067033555,-460.0,0.00021917,10]
[376640447,1754067033564,-460.0,0.00021917,10]
[376640449,1754067033574,-460.0,0.00021917,10]
[376640450,1754067033583,-1705.18,0.00021917,10]
[376640451,1754067033592,-460.0,0.00021917,10]
[376640452,1754067033602,-460.0,0.00021917,10]
[376640455,1754067033612,-460.0,0.00021917,10]
[376640456,1754067033622,-460.0,0.00021917,10]
[376640458,1754067033631,-460.0,0.00021917,10]
[376640460,1754067033641,-838.59,0.00021917,10]
[376640462,1754067033650,-1224.76,0.00021917,10]
[376640464,1754067033659,-460.0,0.00021917,10]
[376640466,1754067033668,-2077.2,0.00021917,10]
[376640468,1754067033679,-460.0,0.00021917,10]
[376640470,1754067033689,-460.0,0.00021917,10]
[376640472,1754067033698,-460.0,0.00021917,10]
[376640474,1754067033707,-156.77394553,0.00021917,10]
[376640476,1754067033717,-460.0,0.00021917,10]
[376640478,1754067033726,-460.0,0.00021917,10]